bitfinex/quotes_SOLUSD_20241115
["timestamp","ask_amount","ask_price","bid_price","bid_amount"]
[1731709067084,4.5749,218.58,218.48,16.36415462]
[1731709068089,5.22845719,218.67,218.49,21.8694]
[1731709068290,4.5716,218.74,218.56,0.34465462]
[1731709068589,4.5716,218.74,218.56,6.68957279]
[1731709069577,23.776884,218.73,218.56,6.68957279]
[1731709069790,23.776884,218.75,218.56,6.68957279]
[1731709070100,28.348284,218.75,218.6,0.21916462]
[1731709070495,20.0,218.74,218.6,0.21916462]
[1731709070970,6.1682,218.88,218.65,6.1699]
[1731709071175,10.7369,218.88,218.66,6.94235056]
[1731709071374,10.8369,218.88,218.66,6.94235056]
[1731709071980,22.2591,218.88,218.66,6.94235056]
[1731709072177,22.2591,218.88,218.68,0.09367462]
[1731709072381,20.0,218.87,218.68,0.34465462]
[1731709072582,24.027864,218.84,218.68,0.34465462]
[1731709072782,24.027864,218.82,218.68,0.09367462]
[1731709072982,23.776884,218.8,218.68,0.09367462]
[1731709073797,4.5705,218.79,218.69,4.5726]
[1731709073999,23.776884,218.78,218.7,0.09367462]
[1731709074574,23.776884,218.78,218.67,16.0057]
[1731709074575,6.1682,218.77,218.68,0.09367462]
[1731709074795,23.776884,218.76,218.68,0.09367462]
[1731709076005,23.776884,218.74,218.64,4.5735]
[1731709076477,23.776884,218.74,218.63,15.6995]
[1731709076684,23.776884,218.72,218.63,15.6995]
[1731709077196,23.776884,218.7,218.58,26.4442]
[1731709077579,20.0,218.69,218.59,0.09367462]
[1731709077778,23.776884,218.68,218.59,0.09367462]
[1731709078094,23.776884,218.66,218.59,0.09367462]
[1731709078394,4.5731,218.67,218.6,0.09367462]
[1731709079294,24.027864,218.73,218.6,0.09367462]
[1731709079497,20.0,218.7,218.6,0.09367462]
[1731709079884,23.776884,218.69,218.6,0.09367462]
[1731709080089,23.776884,218.69,218.6,4.66817462]
[1731709081107,23.776884,218.67,218.6,4.66817462]
[1731709081800,23.776884,218.67,218.6,0.09367462]
[1731709082504,23.776884,218.67,218.55,0.25098]
[1731709083105,23.776884,218.69,218.56,0.09367462]
[1731709083401,20.0,218.68,218.56,4.66907462]
[1731709083593,23.776884,218.67,218.56,4.66907462]
[1731709083897,28.349484,218.69,218.56,16.10757462]
[1731709084102,23.776884,218.67,218.56,16.10757462]
[1731709084307,23.776884,218.67,218.54,4.5756]
[1731709084503,20.0,218.64,218.53,15.6995]
[1731709084799,23.776884,218.63,218.54,0.09367462]
[1731709085209,23.776884,218.63,218.53,15.6995]
[1731709085403,23.776884,218.61,218.53,15.6995]
[1731709086285,23.776884,218.61,218.54,0.09367462]
[1731709086500,28.350784,218.63,218.54,0.09367462]
[1731709087408,28.350784,218.63,218.53,15.6995]
[1731709087793,20.0,218.62,218.53,15.6995]
[1731709087986,23.776884,218.61,218.53,15.6995]
[1731709088182,23.776884,218.61,218.54,0.09367462]
[1731709089508,23.776884,218.59,218.54,0.09367462]
[1731709090191,11.4337,218.66,218.54,4.66937462]
[1731709090192,20.0,218.65,218.54,4.66937462]
[1731709090387,23.776884,218.63,218.54,4.66937462]
[1731709090614,23.776884,218.61,218.54,4.66937462]
[1731709091194,20.0,218.62,218.54,0.09367462]
[1731709091711,4.5733,218.66,218.56,0.09367462]
[1731709092891,4.572,218.72,218.58,0.34465462]
[1731709093701,16.0021,218.72,218.58,0.09367462]
[1731709093899,16.0021,218.72,218.58,0.34465462]
[1731709094108,4.572,218.72,218.62,0.09367462]
[1731709094797,4.571,218.77,218.64,0.09367462]
[1731709095404,15.9985,218.77,218.64,0.09367462]
[1731709096522,0.12549,218.75,218.64,0.09367462]
[1731709097110,4.5716,218.74,218.64,0.09367462]
[1731709097520,20.0,218.72,218.64,0.09367462]
[1731709098098,23.776884,218.71,218.64,0.09367462]
[1731709098296,22.8504,218.82,218.64,4.66727462]
[1731709098514,4.5712,218.76,218.64,16.10157462]
[1731709099900,23.776884,218.73,218.64,16.10157462]
[1731709101016,23.776884,218.71,218.61,16.4519]
[1731709101515,23.776884,218.71,218.62,0.09367462]
[1731709102105,23.776884,218.69,218.61,16.4519]
[1731709102919,20.0,218.66,218.52,38.1279]
[1731709103107,23.776884,218.63,218.52,38.1279]
[1731709103513,23.776884,218.63,218.53,0.09367462]
[1731709104103,23.776884,218.63,218.52,38.1279]
[1731709104326,23.776884,218.63,218.52,22.1111]
[1731709104699,23.776884,218.63,218.53,0.09367462]
[1731709104900,23.776884,218.63,218.55,0.09367462]
[1731709105127,28.350884,218.63,218.55,0.09367462]
[1731709105317,23.776884,218.61,218.52,22.1111]
[1731709105517,23.776884,218.61,218.53,0.09367462]
[1731709106931,23.776884,218.62,218.53,0.09367462]
[1731709107107,23.776884,218.62,218.53,16.10957462]
[1731709107310,4.5733,218.66,218.53,16.10957462]
[1731709107506,24.5733,218.66,218.55,0.09367462]
[1731709108131,4.5733,218.66,218.55,0.09367462]
[1731709108925,23.902374,218.69,218.57,0.09367462]
[1731709109122,23.776884,218.67,218.57,0.09367462]
[1731709109827,20.0,218.66,218.57,0.09367462]
[1731709110032,23.776884,218.65,218.57,0.09367462]
[1731709110428,23.776884,218.67,218.57,0.09367462]
[1731709110726,28.350384,218.65,218.57,4.66877462]
[1731709111334,4.5735,218.65,218.57,16.10667462]
[1731709112227,4.5735,218.65,218.57,11.53157462]
[1731709112535,23.776884,218.64,218.57,11.53157462]
[1731709113315,4.5739,218.63,218.57,11.53157462]
[1731709117539,4.5739,218.63,218.52,33.5514]
[1731709117540,23.776884,218.62,218.52,33.5514]
[1731709117856,23.776884,218.62,218.53,0.09367462]
[1731709118041,23.776884,218.62,218.52,22.1111]
[1731709118548,23.776884,218.6,218.52,16.0982]
[1731709119628,23.776884,218.58,218.52,16.0982]
[1731709121337,28.351384,218.6,218.52,16.0982]
[1731709121643,39.787784,218.6,218.52,16.0982]
[1731709122145,20.0,218.57,218.52,16.0982]
[1731709122362,23.776884,218.56,218.47,16.2329]
[1731709123538,23.776884,218.54,218.48,0.09367462]
[1731709124630,28.352284,218.56,218.48,0.09367462]
[1731709126043,28.352284,218.56,218.47,16.2329]
[1731709127246,4.5758,218.54,218.47,16.2329]
[1731709127422,23.776884,218.53,218.47,16.2329]
[1731709131142,23.776884,218.51,218.47,16.2329]
[1731709132359,4.5766,218.5,218.47,16.2329]
[1731709132527,23.776884,218.49,218.47,16.2329]
[1731709133333,28.353784,218.49,218.47,16.2329]
[1731709139362,28.353784,218.49,218.43,0.09367462]
[1731709142263,28.353784,218.49,218.42,0.09367462]
[1731709143756,28.353784,218.49,218.42,4.67187462]
[1731709145858,23.776884,218.49,218.42,16.11767462]
[1731709146068,23.776884,218.5,218.42,16.11767462]
[1731709147065,23.776884,218.48,218.42,16.11767462]
[1731709147242,23.776884,218.48,218.42,11.53947462]
[1731709147649,23.776884,218.48,218.42,16.11777462]
[1731709148040,4.5756,218.55,218.42,16.11777462]
[1731709149259,23.776884,218.54,218.42,16.11777462]
[1731709150553,4.576,218.53,218.42,16.11777462]
[1731709150752,23.776884,218.52,218.42,16.11777462]
[1731709151561,28.352684,218.54,218.42,16.11777462]
[1731709152768,20.0,218.51,218.42,11.4458]
[1731709152970,23.776884,218.5,218.43,0.09367462]
[1731709153972,23.776884,218.48,218.43,0.09367462]
[1731709154872,28.353484,218.5,218.43,0.09367462]
[1731709157372,28.353484,218.5,218.42,0.09367462]
[1731709159049,28.353484,218.5,218.42,4.67197462]
[1731709159277,28.353484,218.5,218.42,0.09367462]
[1731709159976,28.353484,218.5,218.42,4.67187462]
[1731709160570,28.353484,218.5,218.42,0.09367462]
[1731709162376,28.353484,218.5,218.42,4.67197462]
[1731709163273,28.353484,218.5,218.42,0.09367462]
[1731709164162,28.353484,218.5,218.41,15.06]
[1731709164559,28.353484,218.5,218.42,0.09367462]
[1731709165771,28.353484,218.5,218.44,0.09367462]
[1731709167084,28.353484,218.5,218.41,19.6383]
[1731709167380,28.353484,218.5,218.42,0.09367462]
[1731709168068,28.353484,218.5,218.44,0.09367462]
[1731709170685,28.353484,218.5,218.41,26.5063]
[1731709170989,28.353484,218.5,218.42,0.09367462]
[1731709171169,28.353484,218.5,218.41,15.06]
[1731709171570,23.776884,218.48,218.41,15.06]
[1731709171982,20.12549,218.47,218.33,16.04432941]
[1731709172182,23.776884,218.44,218.33,11.4504]
[1731709172365,23.776884,218.44,218.34,0.09367462]
[1731709172691,28.354984,218.44,218.36,0.09367462]
[1731709173889,28.354984,218.44,218.36,4.67317462]
[1731709175486,23.776884,218.45,218.36,16.12207462]
[1731709175792,23.776884,218.45,218.32,31.9536]
[1731709176289,23.776884,218.43,218.32,31.9536]
[1731709176662,4.5787,218.4,218.32,31.9536]
[1731709176866,0.12549,218.47,218.44,111.318926]
[1731709177075,0.12549,218.47,218.32,31.9536]
[1731709177076,0.25098,218.47,218.33,0.09367462]
[1731709177278,0.12549,218.48,218.33,0.09367462]
[1731709178089,4.96644674,218.52,218.33,0.09367462]
[1731709178090,4.5777,218.45,218.33,0.09367462]
[1731709178290,16.0219,218.45,218.33,0.09367462]
[1731709178893,43.902374,218.44,218.33,0.09367462]
[1731709179266,23.776884,218.42,218.33,0.09367462]
[1731709179588,23.776884,218.42,218.32,15.9224]
[1731709179780,20.0,218.41,218.3,4.5806]
[1731709180885,28.355584,218.4,218.28,16.0342]
[1731709181077,20.0,218.39,218.28,16.0342]
[1731709181672,20.0,218.39,218.29,0.09367462]
[1731709182288,6.04221774,218.44,218.43,41.250916]
[1731709182483,6.04221774,218.44,218.25,16.0659]
[1731709182484,0.34465462,218.41,218.25,16.0659]
[1731709182790,0.34465462,218.41,218.26,0.09367462]
[1731709183375,0.25098,218.39,218.26,0.09367462]
[1731709184599,20.25098,218.39,218.26,0.09367462]
[1731709184774,20.25098,218.37,218.26,0.09367462]
[1731709186293,20.0,218.37,218.26,0.09367462]
[1731709186588,4.1216,218.36,218.26,0.09367462]
[1731709186801,24.22153862,218.42,218.41,102.47955642]
[1731709186983,24.027864,218.41,218.26,0.09367462]
[1731709188074,0.12549,218.39,218.26,0.09367462]
[1731709188269,0.25098,218.39,218.26,0.09367462]
[1731709189081,20.0,218.37,218.26,0.09367462]
[1731709190902,4.1216,218.36,218.26,0.09367462]
[1731709191513,4.1216,218.36,218.22,23.776884]
[1731709191514,20.0,218.35,218.22,23.776884]
[1731709191685,0.25098,218.34,218.21,16.3173]
[1731709192508,0.25098,218.34,218.22,0.09367462]
[1731709192707,20.0,218.32,218.22,0.09367462]
[1731709193312,20.0,218.32,218.18,11.4582]
[1731709193313,44.127864,218.3,218.09,16.3173]
[1731709193486,44.127864,218.3,218.11,4.5847]
[1731709193487,44.027864,218.28,218.11,4.5847]
[1731709193693,50.0907402,218.28,218.1,4.5849]
[1731709194708,23.776884,218.26,218.16,0.09367462]
[1731709194915,23.776884,218.26,218.1,4.5849]
[1731709194916,20.0,218.23,218.08,11.4631]
[1731709195212,20.0,218.21,218.08,11.4631]
[1731709195420,20.0,218.23,218.08,11.4631]
[1731709195708,20.0,218.23,218.1,4.5849]
[1731709195913,20.0,218.23,218.08,16.0484]
[1731709196608,38.65773862,218.2,218.02,5.29958716]
[1731709196820,23.776884,218.16,218.02,16.3173]
[1731709197014,43.776884,218.16,218.02,16.3173]
[1731709197718,47.902284,218.16,218.02,16.3173]
[1731709198508,48.153264,218.16,218.02,16.3173]
[1731709202521,47.902284,218.16,218.02,20.9039]
[1731709203419,47.902284,218.16,218.02,16.3173]
[1731709205534,47.902284,218.16,217.97,11.4691]
[1731709205535,23.776884,218.14,217.98,4.5873]
[1731709205739,23.776884,218.12,217.98,4.5873]
[1731709205936,20.0,218.11,217.98,4.5873]
[1731709206120,20.0,218.11,217.99,0.09367462]
[1731709206620,4.1265,218.1,217.99,0.09367462]
[1731709206815,4.1265,218.1,217.95,0.25098]
[1731709207026,4.1265,218.1,217.96,0.09367462]
[1731709207232,4.1265,218.1,217.98,24.12153862]
[1731709207436,24.027864,218.09,217.94,11.471]
[1731709207645,23.776884,218.05,217.93,0.4295309]
[1731709207965,20.0,218.04,217.93,0.4295309]
[1731709208346,20.12549,218.09,217.93,0.4295309]
[1731709208622,20.0,218.05,217.93,0.4295309]
[1731709208829,14.4455,218.06,217.93,0.4295309]
[1731709209016,4.1273,218.06,217.95,0.09367462]
[1731709209919,0.12549,218.12,217.96,0.25098]
[1731709210119,0.12549,218.12,217.95,0.25098]
[1731709210120,20.0,218.11,217.95,0.25098]
[1731709210336,20.0,218.11,217.96,0.09367462]
[1731709211217,23.776884,218.09,217.96,0.09367462]
[1731709211617,20.0,218.08,217.96,0.09367462]
[1731709212041,4.1271,218.07,217.96,0.21916462]
[1731709212243,4.1271,218.07,217.98,0.09367462]
[1731709212920,4.1271,218.07,217.96,0.21916462]
[1731709213340,20.0,218.11,217.98,0.09367462]
[1731709213638,4.1265,218.1,217.98,0.09367462]
[1731709215157,4.1265,218.1,218.0,0.09367462]
[1731709216223,23.776884,218.15,218.0,0.09367462]
[1731709216422,20.0,218.14,218.02,0.09367462]
[1731709217442,14.4382,218.17,218.02,0.34465462]
[1731709218229,20.6255,218.18,218.02,0.34465462]
[1731709218426,20.6255,218.18,218.02,4.93135462]
[1731709218944,20.0,218.2,218.04,0.09367462]
[1731709219143,21.55247504,218.22,218.03,23.776884]
[1731709219144,20.0,218.18,218.06,0.34465462]
[1731709219344,14.4348,218.22,218.06,0.34465462]
[1731709219923,19.86331228,218.22,218.06,0.34465462]
[1731709220125,19.86331228,218.22,218.08,0.09367462]
[1731709220323,14.4348,218.22,218.08,0.09367462]
[1731709220747,20.0,218.21,218.08,0.09367462]
[1731709222158,4.1246,218.2,218.08,0.09367462]
[1731709222657,4.1246,218.2,218.08,0.21916462]
[1731709222835,4.1246,218.2,218.08,4.80446462]
[1731709223151,4.1246,218.2,218.1,0.21916462]
[1731709223952,4.1246,218.2,218.11,0.12549]
[1731709224127,4.1246,218.2,218.14,0.21916462]
[1731709224328,4.1231,218.28,218.16,15.25056462]
[1731709225151,4.1231,218.28,218.18,0.21916462]
[1731709225536,4.1231,218.28,218.2,0.09367462]
[1731709225847,4.1231,218.28,218.2,0.21916462]
[1731709226243,20.6091,218.35,218.24,0.09367462]
[1731709226929,4.1216,218.36,218.24,0.09367462]
[1731709226930,14.4256,218.36,218.24,0.09367462]
[1731709227434,14.4256,218.36,218.24,0.21916462]
[1731709227636,20.0,218.35,218.24,0.21916462]
[1731709227854,14.4256,218.36,218.24,0.21916462]
[1731709229536,20.0,218.35,218.24,0.21916462]
[1731709229731,4.122,218.34,218.24,0.21916462]
[1731709230438,4.122,218.34,218.24,23.99604862]
[1731709231733,20.0,218.33,218.23,6.2413]
[1731709233443,14.4282,218.32,218.23,6.2413]
[1731709233636,20.0,218.31,218.23,6.2413]
[1731709234233,23.902374,218.3,218.23,6.2413]
[1731709234436,20.0,218.29,218.23,6.2413]
[1731709235451,20.0,218.27,218.21,16.312]
[1731709237435,4.1235,218.26,218.21,16.312]
[1731709240541,20.0,218.25,218.21,16.312]
[1731709240753,20.0,218.25,218.21,14.1292]
[1731709242440,4.1239,218.24,218.21,14.1292]
[1731709246549,20.0,218.23,218.18,6.2413]
[1731709247860,4.1242,218.22,218.18,6.2413]
[1731709252658,4.1242,218.22,218.17,0.09367462]
[1731709262469,20.0,218.21,218.16,15.9862]
[1731709264372,4.1246,218.2,218.16,15.9862]
[1731709264560,20.0,218.19,218.14,0.09367462]
[1731709265879,4.125,218.18,218.14,0.09367462]
[1731709266390,20.0,218.17,218.1,16.011]
[1731709267494,20.0,218.17,218.08,6.3567]
[1731709268023,20.0,218.15,218.09,0.09367462]
[1731709268397,14.4389,218.16,218.09,0.09367462]
[1731709268975,20.6235,218.2,218.09,0.09367462]
[1731709269986,4.125,218.18,218.09,0.21916462]
[1731709272995,55.0531,218.24,218.09,0.21916462]
[1731709273699,20.0,218.22,218.09,0.21916462]
[1731709274116,20.0,218.2,218.09,0.21916462]
[1731709274983,4.1248,218.19,218.09,0.21916462]
[1731709275187,4.1248,218.19,218.11,0.21916462]
[1731709276401,20.0,218.23,218.11,0.21916462]
[1731709276789,20.6177,218.26,218.13,0.09367462]
[1731709276987,20.6177,218.26,218.15,0.09367462]
[1731709277187,14.4309,218.28,218.17,0.09367462]
[1731709277402,14.4309,218.28,218.17,0.21916462]
[1731709278396,20.0,218.27,218.17,0.21916462]
[1731709278795,4.1235,218.26,218.17,0.21916462]
[1731709282991,20.0,218.25,218.17,0.21916462]
[1731709284191,4.1239,218.24,218.17,0.21916462]
[1731709290012,4.1239,218.24,218.19,0.09367462]
[1731709290313,4.1239,218.24,218.19,0.21916462]
[1731709290898,4.1229,218.29,218.21,0.21916462]
[1731709291411,35.0354,218.35,218.21,0.21916462]
[1731709292321,20.0,218.34,218.21,0.21916462]
[1731709293026,20.0,218.32,218.21,0.21916462]
[1731709294803,4.1225,218.31,218.21,0.21916462]
[1731709297117,20.0,218.3,218.21,0.21916462]
[1731709297921,20.0,218.3,218.13,16.2851]
[1731709298226,14.4302,218.29,218.13,16.2851]
[1731709298406,20.0,218.28,218.13,16.2851]
[1731709298717,20.0,218.28,218.14,0.09367462]
[1731709299216,20.0,218.28,218.14,0.21916462]
[1731709299415,20.0,218.28,218.17,0.12549]
[1731709299600,20.0,218.28,218.15,0.12549]
[1731709299601,20.0,218.28,218.18,0.09367462]
[1731709299803,14.4316,218.27,218.18,0.09367462]
[1731709300214,20.0,218.26,218.18,0.09367462]
[1731709300412,20.0,218.26,218.16,0.21916462]
[1731709300602,20.0,218.26,218.16,0.09367462]
[1731709300797,4.1237,218.25,218.18,0.09367462]
[1731709308421,14.4329,218.25,218.18,0.09367462]
[1731709308607,20.0,218.24,218.18,0.09367462]
[1731709310526,4.124,218.23,218.18,0.09367462]
[1731709314403,7.13974311,218.31,218.18,0.09367462]
[1731709314728,43.776884,218.29,218.18,0.09367462]
[1731709315632,14.4309,218.28,218.18,0.09367462]
[1731709316226,20.0,218.27,218.18,0.09367462]
[1731709316625,14.4323,218.26,218.18,0.09367462]
[1731709317129,20.0,218.25,218.18,0.09367462]
[1731709317843,4.1239,218.24,218.18,0.09367462]
[1731709318934,4.1239,218.24,218.13,16.2851]
[1731709318935,23.776884,218.21,218.13,16.2851]
[1731709319110,20.0,218.2,218.13,16.2851]
[1731709320328,20.0,218.18,218.13,16.2851]
[1731709321235,4.1252,218.17,218.13,16.2851]
[1731709326627,0.12549,218.16,218.13,16.2851]
[1731709326834,24.027864,218.16,218.08,6.3474]
[1731709327330,20.0,218.15,218.08,6.3474]
[1731709327925,20.12549,218.16,218.08,6.3474]
[1731709328836,20.0,218.14,218.08,6.3474]
[1731709330036,4.1259,218.13,218.08,6.3474]
[1731709330332,20.12549,218.12,218.07,16.4182]
[1731709331042,20.0,218.12,218.07,16.4182]
[1731709331939,14.4408,218.13,218.07,16.4182]
[1731709332142,4.1263,218.11,218.07,16.4182]
[1731709336226,20.0,218.15,218.07,16.4182]
[1731709337416,4.1257,218.14,218.07,16.4182]
[1731709341530,4.1257,218.14,218.08,0.09367462]
[1731709348849,14.4355,218.21,218.1,0.09367462]
[1731709350251,14.4369,218.19,218.1,0.09367462]
[1731709350640,20.0,218.18,218.1,0.09367462]
[1731709350951,14.4369,218.19,218.1,0.09367462]
[1731709351149,14.4369,218.19,218.11,15.5223]
[1731709352231,44.027864,218.23,218.11,15.5223]
[1731709353753,20.0,218.21,218.12,0.09367462]
[1731709355049,4.1246,218.2,218.12,0.09367462]
[1731709361542,20.0,218.19,218.12,0.09367462]
[1731709362547,4.125,218.18,218.12,0.09367462]
[1731709365942,4.1242,218.22,218.12,0.09367462]
[1731709367241,4.1242,218.22,218.12,4.80366462]
[1731709367432,4.1242,218.22,218.14,0.09367462]
[1731709367855,4.1242,218.22,218.16,0.09367462]
[1731709368258,4.1233,218.27,218.18,0.09367462]
[1731709369262,20.6112,218.33,218.18,0.09367462]
[1731709370043,20.0,218.32,218.18,0.09367462]
[1731709370250,14.4289,218.31,218.18,4.67697462]
[1731709370451,14.4289,218.31,218.18,0.09367462]
[1731709371739,20.0,218.3,218.18,0.09367462]
[1731709372947,4.1229,218.29,218.18,0.09367462]
[1731709375366,4.1229,218.29,218.22,0.09367462]
[1731709375662,14.4229,218.4,218.29,0.09367462]
[1731709376265,4.1208,218.4,218.29,0.21916462]
[1731709377143,4.1208,218.4,218.33,0.09367462]
[1731709377368,4.1201,218.44,218.33,0.09367462]
[1731709378652,20.0,218.44,218.33,0.09367462]
[1731709379754,4.1203,218.43,218.33,0.09367462]
[1731709380748,20.0,218.42,218.32,15.7139]
[1731709381564,20.0,218.4,218.32,15.7139]
[1731709382477,20.0,218.42,218.32,15.7139]
[1731709382771,20.0,218.4,218.32,15.7139]
[1731709383464,20.0,218.38,218.32,15.7139]
[1731709384777,14.425,218.37,218.32,15.7139]
[1731709385285,20.0,218.36,218.32,15.7139]
[1731709385487,20.0,218.36,218.3,6.5075]
[1731709385666,14.425,218.37,218.3,6.5075]
[1731709386878,20.0,218.36,218.3,6.5075]
[1731709388977,20.0,218.34,218.27,15.605]
[1731709389181,20.0,218.32,218.27,15.605]
[1731709389481,20.0,218.32,218.2,15.5272]
[1731709389992,20.0,218.32,218.21,0.09367462]
[1731709390484,20.0,218.3,218.21,0.09367462]
[1731709390660,14.4289,218.31,218.21,0.09367462]
[1731709394281,23.902374,218.34,218.21,0.09367462]
[1731709395057,20.6091,218.35,218.23,0.09367462]
[1731709395265,14.425,218.37,218.25,0.09367462]
[1731709395636,14.425,218.37,218.25,0.21916462]
[1731709396384,20.6062,218.38,218.25,0.21916462]
[1731709396886,23.902374,218.41,218.27,0.21916462]
[1731709397093,23.902374,218.41,218.28,6.1173]
[1731709398068,14.4229,218.4,218.28,6.1173]
[1731709400005,23.902374,218.39,218.28,6.1173]
[1731709400176,14.4243,218.38,218.28,6.1173]
[1731709403093,23.776884,218.37,218.28,6.1173]
[1731709404381,14.4256,218.36,218.28,6.1173]
[1731709412483,23.776884,218.35,218.28,6.1173]
[1731709412905,0.12549,218.34,218.28,6.1173]
[1731709413403,0.12549,218.34,218.26,15.5272]
[1731709414103,35.0337,218.36,218.26,15.5272]
[1731709414403,20.6081,218.36,218.26,15.5272]
[1731709416698,23.776884,218.35,218.26,15.5272]
[1731709418220,14.427,218.34,218.26,15.5272]
[1731709419287,23.776884,218.33,218.26,15.5272]
[1731709420285,14.4282,218.32,218.26,15.5272]
[1731709426011,23.902374,218.35,218.26,15.5272]
[1731709427214,14.427,218.34,218.26,15.5272]
[1731709432711,20.6081,218.36,218.26,15.5272]
[1731709447414,23.776884,218.37,218.26,15.5272]
[1731709448329,10.3031,218.38,218.28,15.92167462]
[1731709449117,14.4217,218.42,218.28,15.92167462]
[1731709449325,14.4217,218.42,218.3,15.828]
[1731709449532,14.4217,218.42,218.31,6.2439]
[1731709449709,4.1205,218.42,218.33,6.2439]
[1731709449909,14.4217,218.42,218.34,15.828]
[1731709451016,10.3012,218.42,218.34,15.828]
[1731709452625,0.09367462,218.44,218.34,15.828]
[1731709452816,23.99604862,218.44,218.34,15.828]
[1731709453808,14.421,218.43,218.34,15.828]
[1731709457819,0.21916462,218.42,218.34,15.828]
[1731709459944,4.1206,218.41,218.34,15.828]
[1731709461125,14.4223,218.41,218.34,15.828]
[1731709461329,0.21916462,218.4,218.34,15.828]
[1731709462552,4.121,218.39,218.34,15.828]
[1731709463723,0.21916462,218.38,218.34,15.828]
[1731709464846,4.1214,218.37,218.34,15.828]
[1731709465342,4.1214,218.37,218.25,16.0365]
[1731709465543,0.34465462,218.36,218.24,15.8394]
[1731709465841,0.21916462,218.36,218.24,15.8394]
[1731709466136,0.12549,218.36,218.24,20.4214]
[1731709466733,0.12549,218.36,218.26,21.4381]
[1731709467039,4.1218,218.35,218.26,21.4381]
[1731709467547,4.1218,218.35,218.27,23.776884]
[1731709467844,4.1218,218.35,218.29,23.776884]
[1731709468145,4.1218,218.35,218.28,15.3065]
[1731709469349,0.09367462,218.43,218.28,15.3065]
[1731709469647,0.09367462,218.41,218.28,15.3065]
[1731709471018,0.12549,218.39,218.28,15.3065]
[1731709472927,4.1212,218.38,218.28,15.3065]
[1731709473130,4.1212,218.38,218.31,16.2032]
[1731709473638,4.1203,218.43,218.33,16.2032]
[1731709473839,4.1203,218.43,218.36,16.2032]
[1731709474727,0.09367462,218.48,218.36,16.2032]
[1731709474941,0.34465462,218.48,218.36,16.2032]
[1731709475335,0.21916462,218.48,218.36,16.2032]
[1731709476340,4.1195,218.47,218.36,16.2032]
[1731709477452,0.12549,218.46,218.36,16.2032]
[1731709478645,4.1199,218.45,218.36,16.2032]
[1731709483442,14.4183,218.47,218.36,16.2032]
[1731709488552,0.21916462,218.46,218.36,16.2032]
[1731709488743,0.12549,218.46,218.36,16.2032]
[1731709488939,14.4183,218.47,218.36,16.2032]
[1731709488940,4.1195,218.47,218.41,23.776884]
[1731709489959,35.09217462,218.58,218.41,23.776884]
[1731709490153,23.902374,218.57,218.41,23.776884]
[1731709490350,24.027864,218.57,218.41,23.776884]
[1731709491050,0.09367462,218.56,218.41,23.776884]
[1731709491353,0.09367462,218.54,218.41,23.776884]
[1731709491845,0.09367462,218.54,218.42,15.9746]
[1731709492041,0.09367462,218.54,218.43,23.776884]
[1731709492237,0.09367462,218.54,218.44,22.3018]
[1731709492439,0.25098,218.55,218.44,22.3018]
[1731709492440,0.12549,218.55,218.44,22.3018]
[1731709493058,0.12549,218.55,218.45,23.776884]
[1731709493257,4.1182,218.54,218.45,23.776884]
[1731709493554,4.1182,218.54,218.46,15.9746]
[1731709494653,0.09367462,218.59,218.46,15.9746]
[1731709495847,0.21916462,218.57,218.46,15.9746]
[1731709496183,0.21916462,218.57,218.47,23.776884]
[1731709496956,4.1178,218.56,218.47,23.776884]
[1731709497661,14.4124,218.56,218.47,23.776884]
[1731709500642,0.12549,218.55,218.47,23.776884]
[1731709500943,0.09367462,218.54,218.46,15.9746]
[1731709501137,0.09367462,218.5,218.46,15.9746]
[1731709501343,0.21916462,218.5,218.46,15.9746]
[1731709501544,0.12549,218.49,218.46,15.9746]
[1731709502367,4.1193,218.48,218.46,15.9746]
[1731709503642,41.1786,218.56,218.46,15.9746]